[Event "GM ZIA Smirity-A 2025"]
[Site "Dhaka"]
[Date "2025.02.17"]
[Round "2.1"]
[White "Mohammad, Javed"]
[Black "Zia, Tahsin Tajwar"]
[Result "1/2-1/2"]
[Annotator "ChessBase"]
[ECO "B13"]
[WhiteElo "2139"]
[BlackElo "2323"]
[PlyCount "83"]
[EventDate "2025.02.17"]
[EventType "swiss"]
[EventCountry "BAN"]
[SourceTitle "playchess.com"]
[Source "ChessBase"]
[SourceQuality "1"]
[TimeControl "5400+30"]

1. e4 c6 {[%emt 1:31:00]} 2. d4 {[%emt 1:31:30]} d5 {[%emt 0:00:30]} 3. exd5 {[%emt 0:00:30]} cxd5 4. c4 {[%emt 0:00:30]} Nf6 {[%emt 0:01:00]} 5. Nc3 {[%emt 0:00:30]} Nc6 {[%emt 0:00:30]} 6. Nf3 {[%emt 0:00:30]} a6 {[%emt 0:00:30]} 7. Bg5 {[%emt 0:00:30]} Be6 {[%emt 0:00:30]} 8. c5 {[%emt 0:00:30]} g6 {[%emt 0:00:30]} 9. Bxf6 {[%emt 0:00:30]} exf6 {[%emt 0:00:30]} 10. Be2 {[%emt 0:00:30]} Bg7 {[%emt 0:00:30]} 11. h3 {[%emt 0:00:30]} f5 {[%emt 0:00:30]} 12. Qa4 {[%emt 0:00:30]} O-O {[%emt 0:00:30]} 13. Rd1 {[%emt 0:00:30]} Rc8 {[%emt 0:00:30]} 14. b4 {[%emt 0:00:30]} h6 {[%emt 0:00:30]} 15. a3 {[%emt 0:00:30]} g5 {[%emt 0:00:30]} 16. Qc2 {[%emt 0:00:30]} Qf6 {[%emt 0:00:30]} 17. b5 {[%emt 0:00:30]} axb5 {[%emt 0:00:30]} 18. Nxb5 {[%emt 0:00:30]} Ra8 {[%emt 0:00:30]} 19. g3 {[%emt 0:00:30]} f4 {[%emt 0:00:30]} 20. g4 {[%emt 0:00:30]} Qe7 {[%emt 0:00:30]} 21. O-O {[%emt 0:00:30]} h5 {[%emt 0:00:30]} 22. Bd3 Bf6 23. Bf5 {[%emt 0:01:00]} Kg7 {[%emt 0:01:00]} 24. Rfe1 {[%emt 0:00:30]} Rh8 {[%emt 0:00:30]} 25. Kg2 {[%emt 0:00:30]} Qd7 {[%emt 0:00:30]} 26. Bxe6 {[%emt 0:00:30]} fxe6 {[%emt 0:00:30]} 27. Nd6 {[%emt 0:00:30]} Rxa3 {[%emt 0:00:30]} 28. Qe2 {[%emt 0:00:30]} hxg4 {[%emt 0:00:30]} 29. hxg4 {[%emt 0:00:30]} Rxf3 {[%emt 0:00:30]} 30. Qxf3 {[%emt 0:00:30]} Nxd4 {[%emt 0:00:30]} 31. Rxd4 {[%emt 0:00:30]} Bxd4 {[%emt 0:00:30]} 32. Rb1 {[%emt 0:00:30]} Rb8 {[%emt 0:00:30]} 33. Qd3 {[%emt 0:00:30]} f3+ {[%emt 0:00:30]} 34. Kg1 {[%emt 0:00:30]} Qa4 {[%emt 0:00:30]} 35. Qxf3 {[%emt 0:00:30]} Qd7 {[%emt 0:00:30]} 36. Qd3 {[%emt 0:00:30]} Qa4 {[%emt 0:00:30]} 37. Qf3 {[%emt 0:00:30]} Qd7 {[%emt 0:00:30]} 38. Qd3 {[%emt 0:00:30]} Qa4 {[%emt 0:00:30]} 39. Qf3 {[%emt 0:00:30]} Bf6 {[%emt 0:00:30]} 40. Qd3 {[%emt 0:00:30]} Qd7 {[%emt 0:00:30]} 41. Kg2 {[%emt 0:00:30]} Qa4 {[%emt 0:00:30]} 42. Kg1 {[%emt 0:00:30]} 1/2-1/2

[Event "GM ZIA Smirity-A 2025"]
[Site "Dhaka"]
[Date "2025.02.17"]
[Round "2.4"]
[White "Sakline Mostafa, Sajid"]
[Black "Wadifa, Ahmed"]
[Result "1-0"]
[Annotator "RC"]
[ECO "B52"]
[WhiteElo "2199"]
[BlackElo "2053"]
[PlyCount "111"]
[EventDate "2025.02.17"]
[EventType "swiss"]
[EventCountry "BAN"]
[SourceTitle "playchess.com"]
[Source "ChessBase"]
[SourceQuality "1"]
[TimeControl "5400+30"]

1. e4 c5 2. Nf3 {[%emt 1:31:30]} d6 {[%emt 1:31:30]} 3. Bb5+ {[%emt 0:00:30]} Bd7 {[%emt 0:00:30]} 4. Bxd7+ {[%emt 0:00:30]} Nxd7 {[%emt 0:00:30]} 5. c4 {[%emt 0:00:30]} Ne5 {[%emt 0:00:30]} 6. Nxe5 {[%emt 0:00:30]} dxe5 {[%emt 0:00:30]} 7. O-O {[%emt 0:00:30]} e6 {[%emt 0:00:30]} 8. Nc3 {[%emt 0:00:30]} Ne7 {[%emt 0:00:30]} 9. d3 {[%emt 0:00:30]} Nc6 {[%emt 0:00:30]} 10. Be3 {[%emt 0:00:30]} Be7 {[%emt 0:00:30]} 11. a3 {[%emt 0:00:30]} O-O {[%emt 0:00:30]} 12. Rb1 {[%emt 0:00:30]} Qd7 {[%emt 0:00:30]} 13. Qc2 {[%emt 0:00:30]} Rad8 {[%emt 0:00:30]} 14. Rfd1 {[%emt 0:00:30]} h6 {[%emt 0:00:30]} 15. Qa4 {[%emt 0:00:30]} Nd4 {[%emt 0:00:30]} 16. Qxd7 {[%emt 0:00:30]} Rxd7 {[%emt 0:00:30]} 17. Kf1 {[%emt 0:00:30]} Nb3 {[%emt 0:00:30]} 18. g3 g5 19. Ke2 Kh7 20. Na2 {[%emt 0:01:30]} f5 {[%emt 0:01:30]} 21. f3 {[%emt 0:00:30]} f4 {[%emt 0:00:30]} 22. Bf2 {[%emt 0:00:30]} fxg3 {[%emt 0:00:30]} 23. hxg3 {[%emt 0:00:30]} Bd6 {[%emt 0:00:30]} 24. Rf1 {[%emt 0:00:30]} h5 {[%emt 0:00:30]} 25. Nc1 {[%emt 0:00:30]} Nd4+ {[%emt 0:00:30]} 26. Bxd4 {[%emt 0:00:30]} exd4 {[%emt 0:00:30]} 27. Kf2 {[%emt 0:00:30]} Rdf7 {[%emt 0:00:30]} 28. Kg2 {[%emt 0:00:30]} Kg6 {[%emt 0:00:30]} 29. Ne2 {[%emt 0:00:30]} a6 {[%emt 0:00:30]} 30. b4 {[%emt 0:00:30]} b6 {[%emt 0:00:30]} 31. e5 {[%emt 0:00:30]} Bxe5 {[%emt 0:00:30]} 32. bxc5 {[%emt 0:00:30]} bxc5 {[%emt 0:00:30]} 33. Rb6 {[%emt 0:00:30]} Rf6 {[%emt 0:00:30]} 34. Rc6 {[%emt 0:00:30]} Rb8 {[%emt 0:00:30]} 35. Rxc5 {[%emt 0:00:30]} Bd6 {[%emt 0:00:30]} 36. Rc6 {[%emt 0:00:30]} Bxa3 {[%emt 0:00:30]} 37. Rxa6 {[%emt 0:00:30]} Rb2 {[%emt 0:00:30]} 38. Rf2 {[%emt 0:00:30]} Bc5 {[%emt 0:00:30]} 39. Nf4+ {[%emt 0:00:30]} gxf4 {[%emt 0:00:30]} 40. Rxb2 {[%emt 0:00:30]} fxg3 {[%emt 0:00:30]} 41. Rb5 {[%emt 0:00:30]} Bf8 {[%emt 0:00:30]} 42. Kxg3 {[%emt 0:00:30]} Bh6 {[%emt 0:00:30]} 43. c5 {[%emt 0:00:30]} Bf4+ {[%emt 0:00:30]} 44. Kg2 {[%emt 0:00:30]} Kh6 {[%emt 0:00:30]} 45. Rbb6 {[%emt 0:00:30]} Rg6+ {[%emt 0:00:30]} 46. Kf1 {[%emt 0:00:30]} Rg3 {[%emt 0:00:30]} 47. Rxe6+ {[%emt 0:00:30]} Kg5 48. Rg6+ {[%emt 0:00:30]} Kh4 {[%emt 0:01:00]} 49. Rxg3 {[%emt 0:00:30]} Kxg3 {[%emt 0:00:30]} 50. Rg6+ {[%emt 0:00:30]} Kxf3 {[%emt 0:00:30]} 51. Rf6 {[%emt 0:00:30]} h4 {[%emt 0:00:30]} 52. c6 {[%emt 0:00:30]} h3 {[%emt 0:00:30]} 53. c7 {[%emt 0:00:30]} h2 {[%emt 0:00:30]} 54. Rxf4+ {[%emt 0:00:30]} Kg3 {[%emt 0:00:30]} 55. Rh4 {[%emt 0:00:30]} Kxh4 {[%emt 0:00:30]} 56. Kg2 {[%emt 0:00:30]} 1-0

[Event "GM ZIA Smirity-A 2025"]
[Site "Dhaka"]
[Date "2025.02.17"]
[Round "2.5"]
[White "Noshin, Anjum"]
[Black "Islam, Khandaker Aminul"]
[Result "1/2-1/2"]
[Annotator "RC"]
[ECO "B30"]
[WhiteElo "2053"]
[BlackElo "2169"]
[PlyCount "143"]
[EventDate "2025.02.17"]
[EventType "swiss"]
[EventCountry "BAN"]
[SourceTitle "playchess.com"]
[Source "ChessBase"]
[SourceQuality "1"]
[TimeControl "5400+30"]

1. e4 c5 {[%emt 0:10:03]} 2. Nf3 {[%emt 0:00:22]} Nc6 {[%emt 0:00:01]} 3. Bb5 {[%emt 0:00:44]} Nf6 {[%emt 0:05:25]} 4. Nc3 {[%emt 0:00:53]} Nd4 {[%emt 1:17:01]} 5. Bc4 {[%emt 1:31:01]} d6 {[%emt 0:00:30]} 6. Nxd4 {[%emt 0:00:00]} cxd4 {[%emt 0:00:00]} 7. Nd5 {[%emt 0:00:00]} Nd7 {[%emt 0:00:00]} 8. d3 {[%emt 0:00:00]} e6 {[%emt 0:00:00]} 9. Nf4 {[%emt 0:00:00]} Ne5 {[%emt 0:00:00]} 10. Bb3 {[%emt 0:00:00]} g6 {[%emt 0:00:00]} 11. Ne2 {[%emt 0:00:00]} Nc6 {[%emt 0:03:00]} 12. Bf4 {[%emt 0:00:00]} Bg7 {[%emt 0:00:00]} 13. O-O {[%emt 0:00:00]} h6 {[%emt 0:00:00]} 14. Bg3 {[%emt 0:00:00]} O-O {[%emt 0:00:00]} 15. f4 {[%emt 0:00:00]} Kh7 {[%emt 0:00:00]} 16. Bf2 {[%emt 0:00:00]} f5 {[%emt 0:00:00]} 17. exf5 {[%emt 0:00:00]} Rxf5 {[%emt 0:00:00]} 18. Qe1 {[%emt 0:00:00]} a5 {[%emt 0:00:00]} 19. c3 {[%emt 0:00:00]} a4 {[%emt 0:00:00]} 20. Bc2 {[%emt 0:07:30]} a3 {[%emt 0:00:00]} 21. b3 {[%emt 0:00:00]} dxc3 {[%emt 0:00:00]} 22. d4 {[%emt 0:00:00]} Rf8 {[%emt 0:00:00]} 23. Qxc3 {[%emt 0:00:00]} e5 {[%emt 0:00:00]} 24. dxe5 {[%emt 0:00:00]} dxe5 {[%emt 0:00:00]} 25. Rad1 {[%emt 0:00:00]} Qc7 {[%emt 0:02:49]} 26. fxe5 {[%emt 0:00:00]} Bxe5 {[%emt 0:01:27]} 27. Qc5 {[%emt 0:00:00]} Bg4 {[%emt 0:00:54]} 28. Bg3 {[%emt 0:00:49]} Rxf1+ {[%emt 0:01:10]} 29. Kxf1 {[%emt 0:02:57]} Bxg3 {[%emt 0:00:52]} 30. hxg3 {[%emt 0:00:17]} Qf7+ {[%emt 0:00:22]} 31. Qf2 {[%emt 0:00:20]} Qe7 {[%emt 0:00:47]} 32. Re1 {[%emt 0:00:15]} Bxe2+ {[%emt 0:00:38]} 33. Rxe2 {[%emt 0:00:23]} Qg7 {[%emt 0:00:34]} 34. Qe1 {[%emt 0:01:16]} Rf8+ {[%emt 0:00:46]} 35. Rf2 {[%emt 0:00:28]} Nd4 {[%emt 0:01:41]} 36. Bxg6+ {[%emt 0:00:41]} Kxg6 {[%emt 0:00:00]} 37. Qe4+ {[%emt 0:00:04]} Nf5 {[%emt 0:00:00]} 38. g4 {[%emt 0:00:46]} Qa1+ {[%emt 0:00:00]} 39. Ke2 {[%emt 0:00:14]} Qxa2+ {[%emt 0:00:08]} 40. Kf1 {[%emt 0:00:25]} Qa1+ {[%emt 0:00:09]} 41. Ke2 {[%emt 0:00:05]} Qb2+ {[%emt 0:00:36]} 42. Kf1 {[%emt 0:00:29]} Qc1+ {[%emt 0:00:37]} 43. Ke2 {[%emt 0:00:16]} Qb2+ {[%emt 0:01:43]} 44. Kf1 {[%emt 0:00:10]} Qc1+ {[%emt 0:00:24]} 45. Ke2 {[%emt 0:00:05]} Qc6 {[%emt 0:00:47]} 46. gxf5+ {[%emt 0:00:24]} Kh7 {[%emt 0:00:21]} 47. Qxc6 {[%emt 0:02:20]} bxc6 {[%emt 0:00:02]} 48. Kd3 {[%emt 0:00:09]} Kg7 {[%emt 0:01:43]} 49. Ra2 {[%emt 0:00:58]} Ra8 {[%emt 0:00:00]} 50. Kc4 {[%emt 0:00:34]} Kf6 {[%emt 0:00:00]} 51. Kb4 {[%emt 0:00:30]} Kxf5 {[%emt 0:00:00]} 52. Kc3 {[%emt 0:00:28]} Kg4 {[%emt 0:02:00]} 53. b4 {[%emt 0:00:12]} Kg3 {[%emt 0:00:00]} 54. Kb3 {[%emt 0:00:49]} h5 {[%emt 0:00:00]} 55. Kc4 {[%emt 0:00:28]} h4 {[%emt 0:00:00]} 56. Kc5 {[%emt 0:00:14]} Ra6 {[%emt 0:00:00]} 57. Kc4 {[%emt 0:00:12]} Kf4 {[%emt 0:02:30]} 58. Kd4 {[%emt 0:01:42]} Kg3 {[%emt 0:00:00]} 59. Kc5 {[%emt 0:00:00]} Kh2 {[%emt 0:00:14]} 60. g4+ {[%emt 0:00:00]} Kg3 {[%emt 0:00:03]} 61. g5 {[%emt 0:00:00]} Kg4 {[%emt 0:01:43]} 62. g6 {[%emt 0:00:00]} h3 {[%emt 0:00:00]} 63. g7 {[%emt 0:00:00]} Ra8 {[%emt 0:00:00]} 64. Rxa3 {[%emt 0:00:20]} Rg8 {[%emt 0:00:00]} 65. Ra1 {[%emt 0:00:37]} h2 {[%emt 0:00:00]} 66. Kxc6 {[%emt 0:00:28]} Rxg7 {[%emt 0:00:00]} 67. Rh1 {[%emt 0:00:14]} Kg3 {[%emt 0:00:00]} 68. b5 {[%emt 0:00:05]} Kg2 {[%emt 0:00:00]} 69. Rxh2+ {[%emt 0:00:04]} Kxh2 {[%emt 0:00:10]} 70. b6 {[%emt 0:00:01]} Kg3 {[%emt 0:00:11]} 71. b7 {[%emt 0:00:06]} Rxb7 {[%emt 0:00:02]} 72. Kxb7 {[%emt 0:00:09]} 1/2-1/2

[Event "GM ZIA Smirity-A 2025"]
[Site "Dhaka"]
[Date "2025.02.17"]
[Round "2.6"]
[White "Mehdi Hasan Parag"]
[Black "Chowdhury, Sohel"]
[Result "1-0"]
[Annotator "RC"]
[ECO "B81"]
[WhiteElo "2158"]
[BlackElo "2018"]
[PlyCount "103"]
[EventDate "2025.02.17"]
[EventType "swiss"]
[EventCountry "BAN"]
[SourceTitle "playchess.com"]
[Source "ChessBase"]
[SourceQuality "1"]
[TimeControl "5400+30"]

1. e4 c5 {[%emt 1:31:00]} 2. Nf3 {[%emt 1:31:30]} d6 {[%emt 0:00:30]} 3. d4 {[%emt 0:00:30]} cxd4 {[%emt 0:00:30]} 4. Nxd4 {[%emt 0:00:30]} Nf6 {[%emt 0:00:30]} 5. Nc3 {[%emt 0:00:30]} a6 {[%emt 0:00:30]} 6. h3 {[%emt 0:00:30]} e6 {[%emt 0:00:30]} 7. g4 {[%emt 0:00:30]} b5 {[%emt 0:00:30]} 8. g5 {[%emt 0:00:30]} Nfd7 {[%emt 0:00:30]} 9. Bg2 {[%emt 0:00:30]} Bb7 {[%emt 0:00:30]} 10. Be3 {[%emt 0:00:30]} Qc7 {[%emt 0:00:30]} 11. h4 {[%emt 0:00:30]} Nc6 {[%emt 0:00:30]} 12. h5 {[%emt 0:00:30]} Nc5 {[%emt 0:00:30]} 13. Nxc6 {[%emt 0:00:30]} Qxc6 {[%emt 0:00:30]} 14. a3 {[%emt 0:00:30]} O-O-O {[%emt 0:00:30]} 15. Qd4 {[%emt 0:00:30]} Rg8 {[%emt 0:00:30]} 16. O-O-O {[%emt 0:00:30]} f5 {[%emt 0:00:30]} 17. f3 {[%emt 0:00:30]} e5 {[%emt 0:00:30]} 18. Qd2 {[%emt 0:00:30]} f4 {[%emt 0:00:30]} 19. Bxc5 {[%emt 0:00:30]} Qxc5 {[%emt 0:00:30]} 20. Bh3+ {[%emt 0:00:30]} Kb8 {[%emt 0:00:30]} 21. Be6 {[%emt 0:00:30]} Rh8 {[%emt 0:00:30]} 22. Bd5 {[%emt 0:00:30]} Be7 {[%emt 0:00:30]} 23. Rhg1 {[%emt 0:00:30]} Bc8 {[%emt 0:00:30]} 24. Bb3 {[%emt 0:00:30]} Bb7 {[%emt 0:00:30]} 25. Kb1 {[%emt 0:00:30]} Rd7 {[%emt 0:00:30]} 26. Bd5 {[%emt 0:00:30]} Bd8 {[%emt 0:00:30]} 27. Bxb7 {[%emt 0:00:30]} Kxb7 {[%emt 0:00:30]} 28. Qd5+ {[%emt 0:00:30]} Qxd5 {[%emt 0:00:30]} 29. Nxd5 {[%emt 0:00:30]} Bb6 {[%emt 0:00:30]} 30. Rg2 {[%emt 0:00:30]} Rc8 {[%emt 0:00:30]} 31. h6 {[%emt 0:00:30]} Bc5 {[%emt 0:00:30]} 32. Rh1 {[%emt 0:00:30]} g6 {[%emt 0:00:30]} 33. Rd1 {[%emt 0:00:30]} a5 {[%emt 0:00:30]} 34. c3 {[%emt 0:00:30]} Rcd8 {[%emt 0:00:30]} 35. b4 {[%emt 0:00:30]} axb4 {[%emt 0:00:30]} 36. axb4 {[%emt 0:00:30]} Bb6 {[%emt 0:00:30]} 37. Rgd2 Kc6 38. Kb2 Be3 39. Re2 Ra7 40. Ra1 Rdd7 41. Nf6 Rf7 42. Rxa7 Rxa7 43. Kb3 Bb6 {[%emt 0:03:30]} 44. Ra2 {[%emt 0:04:00]} Rf7 {[%emt 0:00:30]} 45. Ra8 {[%emt 0:00:30]} Bf2 {[%emt 0:00:30]} 46. Rc8+ {[%emt 0:00:30]} Kb7 {[%emt 0:00:30]} 47. Rg8 {[%emt 0:00:30]} Bh4 {[%emt 0:00:30]} 48. Rg7 {[%emt 0:00:30]} Rc7 {[%emt 0:00:30]} 49. Nd5 {[%emt 0:00:30]} Rd7 {[%emt 0:00:30]} 50. Rg8 Rf7 51. Rf8 {[%emt 0:01:00]} Kc6 52. Rc8+ {[%emt 0:00:30]} 1-0

[Event "GM ZIA Smirity-A 2025"]
[Site "Dhaka"]
[Date "2025.02.17"]
[Round "2.8"]
[White "Ghosh, Chanchal Kumer"]
[Black "Rahman, Syed Mahfuzur"]
[Result "1-0"]
[Annotator "RC"]
[ECO "D93"]
[WhiteElo "2041"]
[BlackElo "2113"]
[PlyCount "93"]
[EventDate "2025.02.17"]
[EventType "swiss"]
[EventCountry "BAN"]
[SourceTitle "playchess.com"]
[Source "ChessBase"]
[SourceQuality "1"]
[TimeControl "5400+30"]

1. d4 {[%emt 0:00:07]} Nf6 {[%emt 0:00:07]} 2. c4 {[%emt 0:00:06]} g6 {[%emt 0:00:08]} 3. Nc3 {[%emt 0:00:10]} d5 {[%emt 0:00:07]} 4. Nf3 {[%emt 0:01:57]} Bg7 {[%emt 0:00:13]} 5. Bf4 {[%emt 0:00:09]} c6 {[%emt 0:02:45]} 6. e3 {[%emt 0:00:39]} O-O {[%emt 0:00:09]} 7. h3 {[%emt 0:02:34]} Bf5 {[%emt 0:04:52]} 8. Rc1 {[%emt 0:00:52]} Ne4 {[%emt 0:02:24]} 9. Bd3 {[%emt 0:02:21]} Nxc3 {[%emt 0:02:24]} 10. bxc3 {[%emt 0:04:02]} Bxd3 {[%emt 0:06:08]} 11. Qxd3 {[%emt 0:00:12]} Nd7 {[%emt 0:00:57]} 12. O-O {[%emt 0:04:09]} Nb6 {[%emt 0:03:56]} 13. Nd2 {[%emt 0:07:00]} e5 {[%emt 0:06:34]} 14. Bg3 {[%emt 0:03:26]} dxc4 {[%emt 0:02:28]} 15. Nxc4 {[%emt 0:00:58]} exd4 {[%emt 0:01:35]} 16. cxd4 {[%emt 0:01:34]} c5 {[%emt 0:00:43]} 17. Bd6 {[%emt 0:11:03]} cxd4 {[%emt 0:05:09]} 18. Bxf8 {[%emt 0:02:30]} Kxf8 {[%emt 0:00:41]} 19. Nxb6 {[%emt 0:03:18]} axb6 {[%emt 0:01:07]} 20. exd4 {[%emt 0:00:36]} Qxd4 {[%emt 0:03:03]} 21. Qxd4 {[%emt 0:00:16]} Bxd4 {[%emt 0:00:01]} 22. Rc2 {[%emt 0:00:24]} Re8 {[%emt 0:10:56]} 23. Rd1 {[%emt 0:01:11]} Bc5 {[%emt 0:00:06]} 24. Rd7 {[%emt 0:02:03]} Re7 {[%emt 0:02:01]} 25. Rxe7 {[%emt 0:00:08]} Kxe7 {[%emt 0:00:06]} 26. Kf1 {[%emt 0:00:14]} Kd6 {[%emt 0:00:22]} 27. Ke2 {[%emt 0:00:14]} b5 {[%emt 0:07:40]} 28. g4 {[%emt 0:00:38]} b6 {[%emt 0:00:16]} 29. f4 {[%emt 0:00:25]} Kd5 {[%emt 0:01:32]} 30. Kd3 {[%emt 0:00:15]} Bd6 {[%emt 0:00:16]} 31. Rf2 {[%emt 0:02:31]} f5 {[%emt 0:02:41]} 32. gxf5 {[%emt 0:01:45]} gxf5 {[%emt 0:00:12]} 33. Rg2 {[%emt 0:05:33]} Bxf4 {[%emt 0:06:19]} 34. Rg7 {[%emt 0:00:05]} h6 {[%emt 0:02:23]} 35. Rb7 {[%emt 0:00:10]} Bd6 {[%emt 0:00:49]} 36. Rxb6 {[%emt 0:00:22]} b4 {[%emt 0:00:22]} 37. Rb7 {[%emt 0:00:47]} Ke5 {[%emt 0:04:59]} 38. Rh7 {[%emt 0:01:01]} Bf8 {[%emt 0:10:04]} 39. Rh8 {[%emt 0:01:03]} Bg7 {[%emt 0:00:06]} 40. Rb8 {[%emt 0:00:32]} Kf4 {[%emt 0:00:12]} 41. Rxb4+ {[%emt 0:02:31]} Kf3 {[%emt 0:00:44]} 42. a4 {[%emt 0:00:58]} f4 {[%emt 0:00:35]} 43. a5 {[%emt 0:00:53]} Bf8 {[%emt 0:00:12]} 44. Rb5 {[%emt 0:00:35]} Kg2 {[%emt 0:00:15]} 45. a6 {[%emt 0:00:30]} f3 {[%emt 0:00:07]} 46. a7 {[%emt 0:00:13]} f2 {[%emt 0:00:06]} 47. a8=Q+ {[%emt 0:00:06]} 1-0

[Event "GM ZIA Smirity-A 2025"]
[Site "Dhaka"]
[Date "2025.02.17"]
[Round "2.9"]
[White "Kazi Zarin, Tasnim"]
[Black "Neelava, Choudhury"]
[Result "1-0"]
[Annotator "NA RC"]
[ECO "C47"]
[WhiteElo "1897"]
[BlackElo "1784"]
[PlyCount "75"]
[EventDate "2025.02.17"]
[EventType "swiss"]
[EventCountry "BAN"]
[SourceTitle "playchess.com"]
[Source "ChessBase"]
[SourceQuality "1"]
[TimeControl "5400+30"]

1. e4 {[%emt 0:06:45]} e5 {[%emt 0:00:13]} 2. Nf3 {[%emt 0:00:58]} Nc6 {[%emt 0:00:07]} 3. d4 {[%emt 0:00:16]} exd4 {[%emt 0:00:08]} 4. Nxd4 {[%emt 0:00:12]} Nf6 {[%emt 0:00:05]} 5. Nc3 {[%emt 0:00:04]} Bb4 {[%emt 0:00:07]} 6. Nxc6 {[%emt 0:00:10]} bxc6 {[%emt 0:00:04]} 7. Bd3 {[%emt 0:00:05]} d5 {[%emt 0:00:05]} 8. exd5 {[%emt 0:00:07]} cxd5 {[%emt 0:00:04]} 9. O-O {[%emt 0:00:12]} O-O {[%emt 0:01:56]} 10. Bg5 {[%emt 0:00:43]} Be6 {[%emt 0:02:00]} 11. Qf3 {[%emt 0:01:33]} Be7 {[%emt 0:03:27]} 12. h3 {[%emt 0:07:22]} Rb8 {[%emt 0:07:43]} 13. b3 {[%emt 0:00:48]} c5 {[%emt 0:05:58]} 14. Ne2 {[%emt 0:08:33]} Nd7 {[%emt 0:19:22]} 15. Bxe7 {[%emt 0:08:16]} Qxe7 {[%emt 0:00:09]} 16. Nf4 {[%emt 0:00:11]} Ne5 {[%emt 0:02:20]} 17. Bxh7+ {[%emt 0:01:17]} Kxh7 {[%emt 0:03:24]} 18. Qh5+ {[%emt 0:00:05]} Kg8 {[%emt 0:00:28]} 19. Qxe5 {[%emt 0:00:06]} Rbd8 {[%emt 0:03:22]} 20. Rad1 {[%emt 0:08:39]} d4 {[%emt 0:03:04]} 21. Rfe1 {[%emt 0:03:52]} Rfe8 {[%emt 0:00:54]} 22. Rd3 {[%emt 0:03:20]} Qd6 {[%emt 0:06:06]} 23. Qxd6 {[%emt 0:05:01]} Rxd6 {[%emt 0:00:26]} 24. c3 {[%emt 0:00:05]} Red8 {[%emt 0:01:36]} 25. Nxe6 {[%emt 0:02:22]} fxe6 {[%emt 0:00:32]} 26. cxd4 {[%emt 0:05:04]} cxd4 {[%emt 0:00:24]} 27. f4 {[%emt 0:01:07]} Kf7 {[%emt 0:02:08]} 28. Kf2 {[%emt 0:02:23]} Kf6 {[%emt 0:01:49]} 29. Kf3 {[%emt 0:04:28]} Rc8 {[%emt 0:02:24]} 30. Re2 {[%emt 0:02:11]} Rd5 {[%emt 0:03:59]} 31. Ke4 {[%emt 0:06:29]} Rcd8 {[%emt 0:00:56]} 32. Rf2 {[%emt 0:00:31]} g6 {[%emt 0:01:08]} 33. g4 {[%emt 0:01:16]} e5 {[%emt 0:01:59]} 34. fxe5+ {[%emt 0:01:56]} Ke6 {[%emt 0:00:08]} 35. Rf6+ {[%emt 0:00:05]} Ke7 {[%emt 0:00:23]} 36. Rxg6 {[%emt 0:00:27]} a5 {[%emt 0:00:34]} 37. Rd6 {[%emt 0:02:48]} R8xd6 {[%emt 0:00:16]} 38. exd6+ {[%emt 0:00:07]} 1-0

[Event "GM ZIA Smirity-A 2025"]
[Site "Dhaka"]
[Date "2025.02.17"]
[Round "2.10"]
[White "Swarnavo Choudhury"]
[Black "Islam, M.M. Zahirul"]
[Result "1-0"]
[Annotator "NA"]
[ECO "C00"]
[WhiteElo "2120"]
[BlackElo "1912"]
[PlyCount "70"]
[EventDate "2025.02.17"]
[EventType "swiss"]
[EventCountry "BAN"]
[SourceTitle "playchess.com"]
[Source "ChessBase"]
[SourceQuality "1"]
[TimeControl "5400+30"]

1. e4 {[%emt 0:03:18]} e6 {[%emt 0:00:11]} 2. d3 {[%emt 0:00:22]} d5 {[%emt 0:00:15]} 3. Nd2 {[%emt 0:00:06]} c5 {[%emt 0:00:47]} 4. Ngf3 {[%emt 0:00:09]} Nf6 {[%emt 0:00:18]} 5. g3 {[%emt 0:01:14]} Nc6 {[%emt 0:00:19]} 6. Bg2 {[%emt 0:00:22]} Be7 {[%emt 0:00:12]} 7. O-O {[%emt 0:00:10]} O-O {[%emt 0:00:14]} 8. Qe2 {[%emt 0:03:09]} Qc7 9. Rd1 {[%emt 0:13:09]} b6 {[%emt 0:07:54]} 10. Nf1 {[%emt 0:02:20]} Ba6 11. e5 {[%emt 0:01:11]} Nd7 {[%emt 0:05:16]} 12. Bf4 {[%emt 0:00:09]} Rac8 {[%emt 0:01:20]} 13. c3 {[%emt 0:06:55]} Rfe8 {[%emt 0:00:13]} 14. h4 {[%emt 0:00:07]} Nf8 {[%emt 0:00:10]} 15. h5 {[%emt 0:00:11]} h6 {[%emt 0:00:20]} 16. N1h2 {[%emt 0:00:09]} Nh7 {[%emt 0:00:02]} 17. Ng4 {[%emt 0:00:12]} d4 {[%emt 0:02:23]} 18. c4 {[%emt 0:03:03]} Kh8 {[%emt 0:00:02]} 19. Nd2 {[%emt 0:15:02]} Bg5 {[%emt 0:06:55]} 20. Ne4 {[%emt 0:03:22]} Bxf4 {[%emt 0:00:45]} 21. gxf4 {[%emt 0:00:40]} Rf8 {[%emt 0:00:03]} 22. Nd6 {[%emt 0:01:48]} Rb8 {[%emt 0:01:54]} 23. Rf1 {[%emt 0:08:48]} Ne7 {[%emt 0:00:28]} 24. Rae1 {[%emt 0:02:40]} Nf5 {[%emt 0:02:40]} 25. Nxf5 {[%emt 0:00:15]} exf5 {[%emt 0:00:02]} 26. Nh2 {[%emt 0:00:15]} Bb7 {[%emt 0:01:18]} 27. Bxb7 {[%emt 0:05:43]} Qxb7 {[%emt 0:00:33]} 28. Nf3 {[%emt 0:00:22]} Qe7 {[%emt 0:01:20]} 29. e6 {[%emt 0:05:00]} Rfe8 {[%emt 0:14:17]} 30. Ne5 {[%emt 0:04:45]} Qxe6 {[%emt 0:02:28]} 31. Qf3 {[%emt 0:02:30]} Qf6 {[%emt 0:05:40]} 32. Nd7 {[%emt 0:00:46]} Qh4 {[%emt 0:00:03]} 33. Nxb8 {[%emt 0:02:22]} Rxb8 {[%emt 0:00:03]} 34. Kg2 {[%emt 0:01:22]} Rg8 {[%emt 0:00:41]} 35. Rh1 {[%emt 0:01:22]} Qd8 1-0

[Event "GM ZIA Smirity-A 2025"]
[Site "Dhaka"]
[Date "2025.02.17"]
[Round "2.11"]
[White "Tahmidul, Haque"]
[Black "Rayan Rashid Mugdho"]
[Result "1-0"]
[Annotator "NA RC"]
[ECO "A14"]
[WhiteElo "2016"]
[BlackElo "1861"]
[PlyCount "67"]
[EventDate "2025.02.17"]
[EventType "swiss"]
[EventCountry "BAN"]
[SourceTitle "playchess.com"]
[Source "ChessBase"]
[SourceQuality "1"]
[TimeControl "5400+30"]

1. Nf3 {[%emt 0:00:17]} Nf6 {[%emt 0:00:30]} 2. d4 {[%emt 0:00:11]} e6 {[%emt 0:00:07]} 3. g3 {[%emt 0:00:17]} d5 {[%emt 0:00:47]} 4. Bg2 {[%emt 0:00:11]} c5 {[%emt 0:00:41]} 5. e3 {[%emt 0:00:50]} Nc6 {[%emt 0:00:29]} 6. O-O {[%emt 0:00:04]} b6 {[%emt 0:00:17]} 7. Nbd2 {[%emt 0:01:31]} Be7 {[%emt 0:03:40]} 8. c4 {[%emt 0:00:08]} Bb7 {[%emt 0:02:50]} 9. b3 {[%emt 0:02:07]} O-O {[%emt 0:00:32]} 10. Bb2 {[%emt 0:03:07]} Rc8 {[%emt 0:04:24]} 11. Re1 {[%emt 0:01:12]} Re8 {[%emt 0:04:00]} 12. h4 {[%emt 0:00:21]} Ne4 13. cxd5 {[%emt 0:03:54]} Nxd2 {[%emt 1:18:43]} 14. Qxd2 {[%emt 0:04:56]} exd5 {[%emt 0:00:00]} 15. dxc5 {[%emt 0:00:02]} Bxc5 {[%emt 0:00:00]} 16. Red1 {[%emt 0:00:05]} Qe7 {[%emt 0:00:00]} 17. a3 {[%emt 0:12:01]} Na5 {[%emt 0:00:00]} 18. Qd3 {[%emt 0:03:05]} f6 {[%emt 0:00:00]} 19. Nd2 {[%emt 0:03:35]} Qf7 {[%emt 0:00:00]} 20. Rac1 {[%emt 0:04:56]} Be7 {[%emt 0:00:00]} 21. Bh3 {[%emt 0:03:00]} Rxc1 {[%emt 0:00:00]} 22. Rxc1 {[%emt 0:00:03]} Bd6 {[%emt 0:00:00]} 23. Nf3 {[%emt 0:03:03]} Nc6 {[%emt 0:00:00]} 24. Qf5 {[%emt 0:02:26]} Be5 {[%emt 0:00:00]} 25. Nxe5 {[%emt 0:01:44]} fxe5 {[%emt 0:00:00]} 26. Qxf7+ {[%emt 0:00:22]} Kxf7 {[%emt 0:00:00]} 27. Bd7 {[%emt 0:00:02]} Re6 {[%emt 0:00:00]} 28. Bxe6+ {[%emt 0:00:28]} Kxe6 {[%emt 0:00:00]} 29. b4 {[%emt 0:00:12]} b5 {[%emt 0:00:00]} 30. Kf1 {[%emt 0:00:57]} Kd6 {[%emt 0:00:00]} 31. Ke2 {[%emt 0:00:17]} Ne7 {[%emt 0:00:00]} 32. f4 {[%emt 0:00:32]} Nc6 {[%emt 0:00:00]} 33. fxe5+ {[%emt 0:00:32]} Ke6 {[%emt 0:00:00]} 34. g4 {[%emt 0:00:14]} 1-0